bitfinex/quotes_BTCUSD_20250808
["timestamp","ask_amount","ask_price","bid_price","bid_amount"]
[1754616178645,1.03783838,117080.0,117050.0,0.26371]
[1754616179045,0.05176,117070.0,117050.0,0.26058]
[1754616180243,0.49762838,117060.0,117030.0,0.13875]
[1754616180508,0.28707211,117060.0,117030.0,0.26371]
[1754616180724,0.69783838,117060.0,117030.0,0.26371]
[1754616180963,0.88938838,117060.0,117050.0,0.001]
[1754616181304,0.57434211,117060.0,117040.0,0.1131]
[1754616181508,0.42686211,117060.0,117040.0,0.1131]
[1754616181715,0.57434211,117060.0,117040.0,0.11637221]
[1754616181919,0.48748,117060.0,117040.0,0.11637221]
[1754616182282,0.34,117060.0,117040.0,0.11637221]
[1754616182653,0.95097627,117060.0,117040.0,0.01759123]
[1754616182901,0.41076627,117050.0,117040.0,0.00014221]
[1754616183124,0.46252627,117050.0,117040.0,0.00014221]
[1754616183813,0.80349627,117050.0,117040.0,0.00014221]
[1754616184013,0.80252627,117050.0,117040.0,0.00014221]
[1754616184216,0.89035838,117050.0,117040.0,0.00014221]
[1754616184933,0.89035838,117050.0,117040.0,0.00114221]
[1754616185175,0.89035838,117050.0,117040.0,0.00014221]
[1754616185396,0.88938838,117050.0,117040.0,0.00014221]
[1754616185602,0.42686211,117050.0,117040.0,0.00014221]
[1754616185816,0.34,117050.0,117040.0,0.11324221]
[1754616186027,0.34,117050.0,117040.0,0.11637221]
[1754616186917,0.14748,117060.0,117040.0,0.11637221]
[1754616187544,0.48748,117060.0,117040.0,0.11637221]
[1754616188387,0.53924,117060.0,117040.0,0.11324221]
[1754616188592,0.94996627,117060.0,117040.0,0.01759123]
[1754616188804,0.95093627,117060.0,117040.0,0.01759123]
[1754616189016,0.94996627,117060.0,117040.0,0.13069123]
[1754616189220,0.89820627,117060.0,117040.0,0.13382123]
[1754616189497,0.48744,117060.0,117040.0,0.13482123]
[1754616189696,0.48748,117060.0,117040.0,0.13482123]
[1754616189888,0.48748,117060.0,117040.0,0.13382123]
[1754616190601,0.14744,117070.0,117050.0,0.00313]
[1754616190981,0.14744,117070.0,117050.0,0.11623]
[1754616191227,0.64506838,117070.0,117040.0,0.01759123]
[1754616191397,0.41076627,117060.0,117040.0,0.13069123]
[1754616191611,0.46252627,117060.0,117040.0,0.13069123]
[1754616191771,0.69682838,117070.0,117040.0,0.13382123]
[1754616191971,0.69779838,117070.0,117040.0,0.13382123]
[1754616192410,0.05176,117060.0,117040.0,0.13069123]
[1754616192793,0.69779838,117070.0,117040.0,0.13482123]
[1754616193006,0.55035838,117070.0,117040.0,0.13382123]
[1754616193208,0.1992,117060.0,117040.0,0.13069123]
[1754616193383,0.1992,117060.0,117040.0,0.01759123]
[1754616193753,0.14744,117060.0,117040.0,0.14078123]
[1754616193952,0.55035838,117070.0,117040.0,0.14078123]
[1754616194074,0.00155,117050.0,117040.0,0.14078123]
[1754616194279,0.00155,117050.0,117040.0,0.13780123]
[1754616194831,0.00155,117050.0,117040.0,0.14286123]
[1754616195046,0.14744,117060.0,117040.0,0.14286123]
[1754616195244,0.14744,117060.0,117040.0,0.14386123]
[1754616195473,0.00155,117050.0,117040.0,0.14286123]
[1754616195760,0.00155,117050.0,117040.0,0.14386123]
[1754616195967,0.00155,117050.0,117040.0,0.14286123]
[1754616196373,0.00155,117050.0,117040.0,0.00014221]
[1754616197005,0.14744,117060.0,117040.0,0.12541221]
[1754616197203,0.23430211,117060.0,117040.0,0.12541221]
[1754616198156,0.23430211,117060.0,117040.0,0.12641221]
[1754616198358,0.4874,117060.0,117050.0,0.00298]
[1754616198478,0.34,117060.0,117050.0,0.00506]
[1754616198720,0.34,117060.0,117050.0,0.12527]
[1754616198917,0.34155,117060.0,117050.0,0.12527]
[1754616199142,0.34155,117060.0,117040.0,0.14078123]
[1754616200712,0.34,117060.0,117050.0,0.00506]
[1754616200915,0.34,117060.0,117050.0,0.12527]
[1754616201741,0.75231627,117060.0,117040.0,0.12035221]
[1754616201940,0.89190838,117060.0,117040.0,0.00014221]
[1754616202148,0.14736,117050.0,117040.0,0.00014221]
[1754616202348,0.14891,117050.0,117040.0,0.00014221]
[1754616202497,0.14891,117050.0,117040.0,0.00114221]
[1754616202699,0.14891,117050.0,117040.0,0.00014221]
[1754616202700,0.55967627,117050.0,117040.0,0.00014221]
[1754616202943,0.60988627,117050.0,117040.0,0.00014221]
[1754616203250,0.55812627,117050.0,117040.0,0.00014221]
[1754616203384,0.14736,117050.0,117040.0,0.00014221]
[1754616203793,0.14736,117050.0,117040.0,0.00114221]
[1754616205062,0.14736,117050.0,117040.0,0.12135221]
[1754616205267,0.57422211,117060.0,117040.0,0.12433221]
[1754616205664,0.34,117060.0,117040.0,0.68245848]
[1754616205864,0.14736,117070.0,117040.0,0.68245848]
[1754616205865,0.14736,117070.0,117050.0,0.12319]
[1754616206083,0.15313359,117080.0,117060.0,0.00298]
[1754616206309,0.2399957,117080.0,117060.0,0.00298]
[1754616206520,0.2399957,117080.0,117050.0,0.14063902]
[1754616206521,0.28594211,117080.0,117050.0,0.14063902]
[1754616206731,0.41076627,117060.0,117050.0,0.12021]
[1754616206966,0.69767838,117080.0,117050.0,0.12319]
[1754616207220,0.69670838,117080.0,117050.0,0.12319]
[1754616207711,0.70258219,117080.0,117050.0,0.12319]
[1754616208348,0.14732,117070.0,117060.0,0.00298]
[1754616208794,0.14732,117070.0,117060.0,0.12319]
[1754616209234,0.14732,117070.0,117060.0,0.12021]
[1754616209464,0.14732,117070.0,117050.0,0.12319]
[1754616209679,0.14732,117070.0,117050.0,0.12021]
[1754616209680,0.60984627,117070.0,117050.0,0.12021]
[1754616210140,0.57515211,117070.0,117060.0,0.001]
[1754616210343,0.34,117060.0,117040.0,0.00014221]
[1754616210546,0.14728,117050.0,117040.0,0.00014221]
[1754616210771,0.14728,117050.0,117040.0,0.12333221]
[1754616211211,0.57414211,117060.0,117040.0,0.12333221]
[1754616211441,0.48728,117060.0,117050.0,0.00298]
[1754616211660,0.48728,117060.0,117050.0,0.12319]
[1754616212123,0.48728,117060.0,117050.0,0.12021]
[1754616212329,0.34,117060.0,117050.0,0.12021]
[1754616212545,0.14728,117070.0,117050.0,0.14063902]
[1754616212961,0.14728,117070.0,117050.0,0.14163902]
[1754616213716,0.14728,117070.0,117050.0,0.14063902]
[1754616213923,0.14728,117070.0,117060.0,0.00298]
[1754616214301,0.14728,117070.0,117060.0,0.12319]
[1754616214787,0.14728,117070.0,117060.0,0.12021]
[1754616214993,0.14728,117070.0,117050.0,0.14163902]
[1754616215892,0.14728,117070.0,117050.0,0.14063902]
[1754616216297,0.14728,117070.0,117060.0,0.001]
[1754616216598,0.14728,117070.0,117050.0,0.14063902]
[1754616216917,0.14728,117070.0,117050.0,0.14163902]
[1754616218294,0.14728,117070.0,117050.0,0.14063902]
[1754616218559,0.14724,117070.0,117060.0,0.001]
[1754616218763,0.14879,117070.0,117050.0,0.14063902]
[1754616219163,0.14879,117070.0,117050.0,0.14163902]
[1754616219677,0.14724,117070.0,117060.0,0.00506]
[1754616219820,0.14724,117070.0,117060.0,0.00606]
[1754616220154,0.14724,117070.0,117060.0,0.12527]
[1754616220459,1.12086627,117090.0,117060.0,0.12527]
[1754616220611,0.23410211,117080.0,117070.0,0.00298]
[1754616220835,0.23565211,117080.0,117070.0,0.00506]
[1754616221054,0.23565211,117080.0,117070.0,0.12527]
[1754616221300,0.57565211,117080.0,117070.0,0.12527]
[1754616221474,0.57565211,117080.0,117060.0,0.12319]
[1754616221926,1.03817838,117080.0,117050.0,0.00298]
[1754616222046,0.46252627,117070.0,117050.0,0.12021]
[1754616222287,0.64637838,117060.0,117040.0,0.12333221]
[1754616222488,0.69813838,117060.0,117040.0,0.12035221]
[1754616225314,0.41076627,117050.0,117040.0,0.00014221]
[1754616225514,0.89093838,117050.0,117040.0,0.00014221]
[1754616226148,0.48017211,117050.0,117040.0,0.00014221]
[1754616226490,0.42841211,117050.0,117040.0,0.00014221]
[1754616226692,0.34,117050.0,117040.0,0.12657221]
[1754616226829,0.48712,117050.0,117040.0,0.12657221]
[1754616227273,0.34,117050.0,117040.0,0.12657221]
[1754616227470,0.14712,117060.0,117040.0,0.12657221]
[1754616227724,0.14712,117060.0,117040.0,0.53408848]
[1754616228036,0.42686211,117080.0,117050.0,0.12436]
[1754616228244,0.14712,117070.0,117060.0,0.00325]
[1754616228483,0.48712,117070.0,117060.0,0.00532]
[1754616229168,0.48867,117070.0,117060.0,0.12643]
[1754616229389,0.48867,117070.0,117050.0,0.12436]
[1754616229809,0.89943627,117070.0,117050.0,0.12436]
[1754616230435,0.48867,117070.0,117050.0,0.12436]
[1754616231472,0.48867,117070.0,117060.0,0.00307]
[1754616231698,0.48867,117070.0,117060.0,0.12418]
[1754616231923,0.48867,117070.0,117060.0,0.12643]
[1754616232143,0.48867,117070.0,117050.0,0.12536]
[1754616232539,0.48867,117070.0,117050.0,0.12436]
[1754616232937,0.48867,117070.0,117060.0,0.001]
[1754616233108,0.57553211,117070.0,117060.0,0.001]
[1754616233318,1.03902838,117070.0,117060.0,0.001]
[1754616233537,1.20986634,117070.0,117060.0,0.001]
[1754616233743,1.20831634,117070.0,117060.0,0.001]
[1754616234186,0.51086484,117060.0,117040.0,0.00014221]
[1754616234424,0.64466838,117050.0,117040.0,0.00014221]
[1754616234751,0.69642838,117050.0,117040.0,0.00014221]
[1754616235359,0.28663211,117050.0,117040.0,0.00014221]
[1754616235593,0.69739838,117050.0,117040.0,0.00014221]
[1754616236039,0.69642838,117050.0,117040.0,0.00014221]
[1754616236499,0.64466838,117050.0,117040.0,0.00014221]
[1754616237382,0.69739838,117050.0,117040.0,0.00014221]
[1754616237677,0.69642838,117050.0,117040.0,0.00014221]
[1754616238358,0.64466838,117050.0,117040.0,0.00014221]
[1754616239151,0.64511838,117050.0,117040.0,0.00014221]
[1754616239551,0.69687838,117050.0,117040.0,0.00014221]
[1754616239891,0.28611211,117050.0,117040.0,0.00014221]
[1754616240052,0.69687838,117050.0,117040.0,0.00014221]
[1754616240688,0.64511838,117050.0,117040.0,0.00014221]
[1754616241445,0.08731211,117050.0,117040.0,0.12657221]
[1754616241648,0.23537211,117050.0,117040.0,0.12657221]
[1754616242248,0.64613838,117050.0,117040.0,0.12657221]
[1754616242455,0.64613838,117050.0,117040.0,0.12125221]
[1754616242658,0.69789838,117050.0,117040.0,0.00014221]
[1754616243922,0.64613838,117050.0,117040.0,0.00014221]
[1754616244144,0.64613838,117050.0,117040.0,0.12125221]
[1754616245080,0.64613838,117050.0,117040.0,0.00014221]
[1754616245345,0.69789838,117050.0,117040.0,0.00014221]
[1754616246272,0.86876553,117050.0,117040.0,0.00014221]
[1754616246627,0.86973553,117050.0,117040.0,0.00014221]
[1754616247044,0.86876553,117050.0,117040.0,0.00014221]
[1754616247597,0.69789838,117050.0,117040.0,0.00014221]
[1754616247756,0.64613838,117050.0,117040.0,0.00014221]
[1754616250231,0.64613838,117050.0,117040.0,0.12657221]
[1754616250840,0.64613838,117050.0,117040.0,0.12332221]
[1754616250964,0.64613838,117050.0,117040.0,0.12125221]
[1754616251371,0.64613838,117050.0,117040.0,0.12332221]
[1754616251582,0.64613838,117050.0,117040.0,0.12657221]
[1754616252119,0.64613838,117050.0,117040.0,0.00014221]
[1754616252774,0.64613838,117050.0,117040.0,0.12125221]
[1754616253146,0.64613838,117050.0,117040.0,0.12332221]
[1754616253330,0.23537211,117050.0,117040.0,0.12125221]
[1754616253538,0.64613838,117050.0,117040.0,0.12125221]
[1754616254305,0.64256003,117050.0,117040.0,0.00014221]
[1754616254761,0.81342718,117050.0,117040.0,0.00014221]
[1754616254969,0.86518718,117050.0,117040.0,0.00014221]
[1754616256214,0.86615718,117050.0,117040.0,0.00014221]
[1754616256852,1.61692345,117050.0,117040.0,0.00014221]
[1754616257620,1.66034857,117050.0,117040.0,0.00014221]
[1754616258439,1.2495823,117050.0,117040.0,0.00014221]
[1754616258705,0.78608603,117050.0,117040.0,0.00014221]
[1754616258903,1.1968523,117050.0,117040.0,0.00014221]
[1754616259105,1.15342718,117050.0,117040.0,0.00014221]
[1754616259660,1.20518718,117050.0,117040.0,0.00014221]
[1754616260387,1.20615718,117050.0,117040.0,0.00014221]
[1754616260582,1.15342718,117050.0,117040.0,0.00014221]
[1754616261444,0.98256003,117050.0,117040.0,0.11910221]
[1754616261645,0.98256003,117050.0,117040.0,0.12123221]
[1754616261780,0.98256003,117050.0,117040.0,0.12431221]
[1754616261984,0.98251696,117050.0,117040.0,0.12431221]
[1754616262189,0.42479069,117050.0,117040.0,0.12431221]
[1754616262383,0.56984069,117050.0,117040.0,0.12431221]
[1754616262794,0.99046195,117050.0,117040.0,0.12431221]
[1754616264140,1.1628791,117050.0,117040.0,0.12431221]
[1754616264353,1.2146391,117050.0,117040.0,0.00014221]
[1754616264756,1.63623036,117050.0,117040.0,0.00014221]
[1754616265274,1.2156091,117050.0,117040.0,0.00014221]
[1754616265479,1.63623036,117050.0,117040.0,0.00014221]
[1754616265675,1.2156091,117050.0,117040.0,0.00014221]
[1754616266202,1.2146391,117050.0,117040.0,0.00014221]
[1754616266427,1.2156091,117050.0,117040.0,0.00014221]
[1754616266622,1.63623036,117050.0,117040.0,0.00014221]
[1754616266822,0.74225784,117050.0,117040.0,0.00014221]
[1754616267039,1.15320342,117050.0,117040.0,0.00014221]
[1754616267628,0.98233627,117050.0,117040.0,0.00014221]
[1754616267829,0.98070627,117050.0,117040.0,0.12431221]
[1754616269218,0.98225627,117050.0,117040.0,0.12431221]
[1754616269843,0.98601355,117050.0,117040.0,0.12431221]
[1754616270045,0.98601355,117050.0,117040.0,0.00014221]
[1754616270386,0.98601355,117050.0,117040.0,0.11910221]
[1754616271177,1.1568807,117050.0,117040.0,0.00014221]
[1754616271401,1.62055628,117050.0,117040.0,0.00014221]
[1754616271770,1.6380053,117050.0,117040.0,0.00014221]
[1754616272562,1.17529972,117050.0,117040.0,0.00014221]
[1754616273017,1.17521972,117050.0,117040.0,0.12123221]
[1754616273251,0.98690355,117050.0,117040.0,0.12123221]
[1754616273876,0.74682512,117050.0,117040.0,0.12123221]
[1754616274120,0.98690355,117050.0,117040.0,0.12123221]
[1754616275002,0.98438355,117050.0,117040.0,0.12431221]
[1754616277506,0.42699797,117050.0,117040.0,0.12431221]
[1754616277695,0.57335797,117050.0,117040.0,0.12431221]
[1754616278796,0.98430355,117050.0,117040.0,0.12431221]
[1754616278983,0.57335797,117050.0,117040.0,0.12431221]
[1754616279219,0.98430355,117050.0,117040.0,0.12431221]
[1754616280157,0.98585355,117050.0,117040.0,0.12431221]
[1754616280357,0.98585355,117050.0,117040.0,0.11910221]
[1754616280792,0.98585355,117050.0,117040.0,0.12431221]
[1754616281051,1.1567207,117050.0,117040.0,0.12431221]
[1754616281260,1.1567207,117050.0,117040.0,0.00014221]
[1754616282437,1.2084807,117050.0,117040.0,0.00014221]
[1754616282987,1.1567207,117050.0,117040.0,0.00014221]
[1754616283553,1.2084807,117050.0,117040.0,0.00014221]
[1754616283777,1.62039628,117050.0,117040.0,0.00014221]
[1754616284011,1.6378453,117050.0,117040.0,0.00014221]
[1754616284221,1.6378453,117050.0,117000.0,0.11552]
[1754616284222,0.51092556,117010.0,117000.0,0.11552]
[1754616284427,0.17094017,117000.0,116990.0,0.00298]
[1754616284658,0.81490786,117000.0,116990.0,0.12061]
[1754616285685,0.64396769,117000.0,116990.0,0.1207521]
[1754616285941,0.49780769,117000.0,116990.0,0.1207521]
[1754616286164,0.64392769,117000.0,116990.0,0.1207521]
[1754616286599,0.23298211,117000.0,116990.0,0.1207521]
[1754616287377,0.08686211,117000.0,116990.0,0.1207521]
[1754616287588,0.23298211,117000.0,116990.0,0.1207521]
[1754616288056,0.14612,117000.0,116990.0,0.1207521]
[1754616288196,0.48612,117000.0,116990.0,0.1207521]
[1754616288402,0.48608,117000.0,116990.0,0.1207521]
[1754616289229,0.98388769,117000.0,116990.0,0.1207521]
[1754616289433,0.57294211,117000.0,116990.0,0.1207521]
[1754616289633,0.57290211,117000.0,116990.0,0.1207521]
[1754616289800,0.48604,117000.0,116990.0,0.1207521]
[1754616290708,0.48604,117000.0,116990.0,0.1227521]
[1754616291115,0.34,117000.0,116990.0,0.1227521]
[1754616291416,0.48604,117000.0,116990.0,0.1227521]
[1754616291860,0.34,117000.0,116990.0,0.1227521]
[1754616292078,0.486,117000.0,116990.0,0.1227521]
[1754616293253,0.61606558,117030.0,116990.0,0.1227521]
[1754616293455,0.146,117020.0,117000.0,0.00298]
[1754616293666,0.146,117020.0,117010.0,0.11763]
[1754616293857,0.486,117020.0,117010.0,0.11763]
[1754616294089,0.146,117020.0,117010.0,0.12061]
[1754616295215,0.146,117020.0,117010.0,0.12261]
[1754616296873,0.14755,117020.0,117010.0,0.12261]
[1754616297115,0.89849558,117020.0,117010.0,0.002]
[1754616297332,1.15626864,117020.0,117010.0,0.002]
[1754616297523,0.98535769,117020.0,117010.0,0.002]
[1754616297721,0.98535769,117020.0,117010.0,0.11752]
[1754616297962,0.98535769,117020.0,117010.0,0.11552]
[1754616298873,1.15626864,117020.0,117000.0,0.1185]
[1754616299084,0.41094558,117010.0,117000.0,0.1185]
[1754616299311,1.15471864,117020.0,117000.0,0.12061]
[1754616299731,0.98380769,117020.0,117000.0,0.12061]
[1754616299937,0.75249558,117010.0,117000.0,0.11552]
[1754616300140,1.01028424,117010.0,116990.0,0.1186421]
[1754616300342,0.14584,117000.0,116990.0,0.1156621]
[1754616300492,0.14739,117000.0,116990.0,0.0001421]
[1754616301127,0.89833558,117000.0,116990.0,0.0001421]
[1754616301343,0.98519769,117000.0,116990.0,0.0001421]
[1754616301548,1.15613786,117000.0,116990.0,0.0001421]
[1754616302222,1.15613786,117000.0,116990.0,0.0011421]
[1754616302651,1.20789786,117000.0,116990.0,0.0011421]
[1754616303049,1.15613786,117000.0,116990.0,0.0011421]
[1754616303485,1.15613786,117000.0,116990.0,0.0001421]
[1754616304137,0.98519769,117000.0,116990.0,0.0001421]
[1754616304588,1.15613786,117000.0,116990.0,0.1156621]
[1754616305328,0.83935769,117000.0,116990.0,0.1156621]
[1754616305530,0.57262211,117000.0,116990.0,0.1207521]
[1754616306721,0.42686211,117000.0,116990.0,0.1207521]
[1754616306956,0.57258211,117000.0,116990.0,0.1207521]
[1754616307152,0.48572,117000.0,116990.0,0.1207521]
[1754616307351,0.48568,117000.0,116990.0,0.1207521]
[1754616307579,0.14568,117000.0,116990.0,0.1207521]
[1754616308672,0.14568,117000.0,116990.0,0.1217521]
[1754616316186,0.14723,117000.0,116990.0,0.1166621]
[1754616316604,0.14568,117000.0,116990.0,0.1217321]
[1754616317007,0.23409211,117000.0,116990.0,0.1217321]
[1754616317151,0.23254211,117000.0,116990.0,0.1217321]
[1754616317774,0.14568,117000.0,116990.0,0.1217321]
[1754616318365,0.14568,117000.0,116990.0,0.1473961]
[1754616323489,0.56814375,117000.0,116990.0,0.0268061]
[1754616323696,0.56814375,117000.0,116990.0,0.1397261]
[1754616323874,0.56814375,117000.0,116990.0,0.1447961]
[1754616324628,0.14723,117000.0,116990.0,0.1447961]
[1754616325256,0.14568,117000.0,116990.0,0.1447961]
[1754616327089,0.14568,117000.0,116990.0,0.56570985]
[1754616327304,0.14568,117000.0,116990.0,0.1447961]
[1754616328907,0.34,117020.0,116990.0,0.56570985]
[1754616329115,0.48516,117010.0,117000.0,0.53693375]
[1754616329354,0.34,117010.0,117000.0,0.53890375]
[1754616329544,0.14516,117020.0,117000.0,0.53890375]
[1754616329672,0.14516,117020.0,117000.0,0.42288375]
[1754616329868,0.14516,117020.0,117010.0,0.11602]
[1754616330147,0.14516,117020.0,117010.0,0.11799]
[1754616331039,0.14561,117020.0,117010.0,0.11799]
[1754616331251,0.48561,117020.0,117000.0,0.11602]
[1754616331465,0.56652375,117020.0,117000.0,0.11602]
[1754616332463,0.90652375,117020.0,117010.0,0.0031]
[1754616332667,0.48561,117020.0,117010.0,0.0031]
[1754616332861,0.48561,117020.0,117010.0,0.11602]
[1754616333061,1.0774366,117020.0,117000.0,0.11602]
[1754616333269,0.42091375,117010.0,117000.0,0.11292]
[1754616333476,0.42136375,117010.0,117000.0,0.11602]
[1754616333658,0.00045,117010.0,117000.0,0.11799]
[1754616334058,0.42136375,117010.0,117000.0,0.11292]
[1754616334373,0.67915342,117010.0,116990.0,0.1161621]
[1754616334584,0.145,117000.0,116990.0,0.1161621]
[1754616334795,0.145,117000.0,116990.0,0.1181321]
[1754616335239,0.145,117000.0,116990.0,0.1437961]
[1754616335800,0.14655,117000.0,116990.0,0.1437961]
[1754616336437,0.145,117000.0,116990.0,0.1437961]
[1754616336631,0.56746375,117000.0,116990.0,0.1437961]
[1754616336849,0.56746375,117000.0,116990.0,0.1387261]
[1754616337056,0.56746375,117000.0,116990.0,0.1407261]
[1754616337261,0.56746375,117000.0,116990.0,0.0278061]
[1754616337455,0.90746375,117000.0,116990.0,0.0021421]
[1754616337693,1.21702603,117000.0,116990.0,0.0021421]
[1754616338302,1.21702603,117000.0,116990.0,0.0001421]
[1754616338742,1.21702603,117000.0,116990.0,0.0011421]
[1754616338952,0.99432586,117000.0,116990.0,0.0011421]
[1754616339688,0.57341211,117000.0,116990.0,0.1191321]
[1754616340133,0.57341211,117000.0,116990.0,0.1181321]
[1754616340911,0.42091375,117020.0,116990.0,0.1181321]
[1754616341080,0.23170211,117010.0,117000.0,0.0031]
[1754616341290,0.57170211,117010.0,117000.0,0.0031]
[1754616341488,0.99416586,117010.0,116990.0,0.0001421]
[1754616341696,0.99416586,117010.0,116990.0,0.0032421]
[1754616341943,0.99416586,117010.0,116990.0,0.1161621]
[1754616342191,1.1650945,117010.0,116990.0,0.1161621]
[1754616342648,0.42091375,117000.0,116990.0,0.1130621]
[1754616342866,0.42246375,117000.0,116990.0,0.1130621]
[1754616343302,0.42246375,117000.0,116990.0,0.0001421]
[1754616343778,0.42246375,117000.0,116990.0,0.1387981]
[1754616344445,0.00155,117000.0,116990.0,0.1438781]
[1754616345462,0.73202603,117000.0,116990.0,0.0001421]
[1754616345690,1.02026603,117000.0,116990.0,0.0001421]
[1754616346124,1.07202603,117000.0,116990.0,0.0011421]
[1754616346342,1.07202603,117000.0,116990.0,0.0001421]
[1754616347679,1.02026603,117000.0,116990.0,0.0001421]
[1754616350994,0.84932586,117000.0,116990.0,0.0001421]
[1754616351200,0.84932586,117000.0,116990.0,0.1182121]
[1754616351201,0.42686211,117000.0,116990.0,0.1182121]
[1754616351413,0.73668125,117010.0,116990.0,0.53912585]
[1754616351414,0.14484,117010.0,116990.0,0.53912585]
[1754616351624,0.23170211,117010.0,116990.0,0.42309585]
[1754616351835,0.23170211,117010.0,117000.0,0.11603]
[1754616352050,0.14456,117010.0,117000.0,0.11603]
[1754616352308,0.48456,117010.0,117000.0,0.11807]
[1754616352490,0.48611,117010.0,117000.0,0.11299]
[1754616352966,0.48456,117010.0,117000.0,0.11807]
[1754616354912,0.48611,117010.0,117000.0,0.11807]
[1754616355318,0.48456,117010.0,117000.0,0.11807]
[1754616355923,0.65703556,117010.0,117000.0,0.11807]
[1754616356284,0.65703556,117010.0,116990.0,0.1418361]
[1754616356513,0.65703597,117010.0,116990.0,0.0288461]
[1754616356727,1.07794972,117010.0,117000.0,0.11299]
[1754616357413,1.16481183,117010.0,116990.0,0.0288461]
[1754616357582,1.16481183,117010.0,116990.0,0.1418361]
[1754616357964,1.16481183,117010.0,116990.0,0.0288461]
[1754616358167,1.16481183,117010.0,116990.0,0.1418361]
[1754616358382,0.17094017,117000.0,116990.0,0.1418361]
[1754616358630,0.59340392,117000.0,116990.0,0.1387961]
[1754616358814,0.08841211,117000.0,116990.0,0.0001421]
[1754616359018,0.48456,117010.0,116990.0,0.1182121]
[1754616359180,0.99233586,117010.0,116990.0,0.1182121]
[1754616359576,0.48456,117010.0,117000.0,0.00304]
[1754616359801,0.48456,117010.0,117000.0,0.11807]
[1754616362491,0.90547375,117010.0,117000.0,0.11807]
[1754616362735,1.07684931,117010.0,116990.0,0.1161721]
[1754616363339,0.90592375,117010.0,116990.0,0.1161721]
[1754616363465,0.90592375,117010.0,116990.0,0.1131321]
[1754616363667,0.90592375,117010.0,117000.0,0.00304]
[1754616363897,0.90592375,117010.0,117000.0,0.11603]
[1754616364091,0.48501,117010.0,117000.0,0.11807]
[1754616364669,1.07684931,117010.0,117000.0,0.11807]
[1754616365112,0.90592375,117010.0,117000.0,0.11807]
[1754616366041,0.48501,117010.0,117000.0,0.11807]
[1754616366248,1.07685304,117010.0,116990.0,0.0001421]
[1754616366460,0.42091375,117000.0,116990.0,0.0001421]
[1754616366755,0.42246375,117000.0,116990.0,0.0001421]
[1754616366957,0.42246375,117000.0,116990.0,0.1131321]
[1754616367106,0.93340392,117000.0,116990.0,0.0001421]
[1754616367910,1.02026603,117000.0,116990.0,0.0001421]
[1754616368264,1.07194066,117000.0,116990.0,0.0001421]
[1754616369108,1.07194066,117000.0,116990.0,0.0011421]
[1754616369465,1.09027968,117000.0,116990.0,0.0001421]
[1754616370700,1.0805656,117000.0,116990.0,0.0001421]
[1754616372153,1.2246456,117000.0,116990.0,0.0001421]
[1754616373967,1.2237556,117000.0,116990.0,0.0001421]
[1754616375339,1.1719956,117000.0,116990.0,0.0001421]
[1754616375939,1.2237556,117000.0,116990.0,0.0001421]
[1754616377124,0.81255593,117000.0,116990.0,0.0001421]
[1754616377349,1.2237556,117000.0,116990.0,0.0001421]
[1754616377544,1.2246456,117000.0,116990.0,0.0001421]
[1754616379823,1.2237556,117000.0,116990.0,0.0001421]
[1754616379955,1.1719956,117000.0,116990.0,0.0001421]
[1754616382160,0.76079593,117000.0,116990.0,0.0001421]
[1754616382333,0.76079593,117000.0,116990.0,0.1164721]
[1754616382509,0.7593313,117000.0,116990.0,0.1196421]
[1754616382716,0.7607513,117000.0,116990.0,0.1196421]
[1754616382945,0.7607513,117000.0,116990.0,0.1174821]
[1754616383149,0.7607513,117000.0,116990.0,0.1143121]
[1754616383324,1.22371097,117000.0,116990.0,0.0001421]
[1754616383772,1.17195097,117000.0,116990.0,0.0001421]
[1754616385668,1.17195097,117000.0,116990.0,0.1143121]
[1754616386223,1.17195097,117000.0,116990.0,0.0001421]
[1754616386549,1.22371097,117000.0,116990.0,0.0001421]
[1754616388142,1.17195097,117000.0,116990.0,0.0001421]
[1754616388363,1.17195097,117000.0,116990.0,0.1143121]
[1754616388647,1.17195097,117000.0,116990.0,0.1196421]
[1754616389039,1.02787097,117000.0,116990.0,0.1196421]
[1754616389041,0.7588513,117000.0,116990.0,0.1196421]
[1754616389254,0.7602713,117000.0,116990.0,0.1196421]
[1754616389464,0.7602713,117000.0,116990.0,0.1143121]
[1754616389768,0.7588513,117000.0,116990.0,0.1196421]
[1754616389927,1.02645097,117000.0,116990.0,0.1196421]
[1754616390131,0.7588513,117000.0,116990.0,0.1196421]
[1754616390380,0.4836,117000.0,116990.0,0.1196421]
[1754616390583,0.1436,117000.0,116990.0,0.1196421]
[1754616391143,0.4836,117000.0,116990.0,0.1196421]
[1754616391988,1.60115622,117000.0,116990.0,0.0001421]
[1754616392191,1.18028876,117000.0,116990.0,0.0001421]
[1754616392400,0.7594213,117000.0,116990.0,0.0001421]
[1754616392562,1.18028876,117000.0,116990.0,0.0001421]
[1754616392765,1.17060662,117000.0,116990.0,0.0001421]
[1754616392977,0.7588513,117000.0,116990.0,0.1196421]
[1754616393235,0.7594213,117000.0,116990.0,0.1196421]
[1754616393475,0.7587313,117000.0,116990.0,0.1196421]
[1754616393961,0.7593013,117000.0,116990.0,0.1196421]
[1754616395684,1.17048662,117000.0,116990.0,0.0001421]
[1754616396421,1.22224662,117000.0,116990.0,0.0001421]
[1754616397243,1.17048662,117000.0,116990.0,0.0001421]
[1754616399345,1.22224662,117000.0,116990.0,0.0001421]
[1754616399552,1.22313662,117000.0,116990.0,0.0001421]
[1754616399956,1.22224662,117000.0,116990.0,0.0001421]
[1754616400419,1.17048662,117000.0,116990.0,0.0001421]
[1754616401767,0.7587313,117000.0,116990.0,0.1196421]
[1754616402946,0.08686211,117000.0,116990.0,0.1196421]
[1754616403154,0.17092929,117010.0,116990.0,0.1196421]
[1754616403337,0.48324,117000.0,116990.0,0.1164721]
[1754616403998,0.48324,117000.0,116990.0,0.1197121]
[1754616405303,0.48324,117000.0,116990.0,0.1207121]
[1754616405887,0.18836006,117020.0,116990.0,0.1207121]
[1754616406100,0.14316,117010.0,117000.0,0.00324]
[1754616406306,0.48316,117010.0,117000.0,0.00324]
[1754616406535,0.48316,117010.0,117000.0,0.00522]
[1754616406946,0.48316,117010.0,117000.0,0.12813]
[1754616417559,0.90543204,117010.0,117000.0,0.12813]
[1754616417681,0.90543204,117010.0,117000.0,0.12615]
[1754616417879,1.0763576,117010.0,117000.0,0.12291]
[1754616418321,1.0763576,117010.0,116990.0,0.1262921]
[1754616419647,0.90543204,117010.0,117000.0,0.00324]
[1754616419816,0.90543204,117010.0,117000.0,0.12615]
[1754616420022,0.90543204,117010.0,117000.0,0.12813]
[1754616420276,0.48316,117010.0,117000.0,0.12813]
[1754616420479,0.48276,117010.0,117000.0,0.12813]